bitfinex/quotes_SOLUSD_20251009
["timestamp","ask_amount","ask_price","bid_price","bid_amount"]
[1760011506247,0.46,223.78,223.71,246.46539515]
[1760011506549,4.92882585,223.78,223.71,246.46539515]
[1760011506742,4.46882585,223.78,223.71,246.46539515]
[1760011507344,4.6684939,223.79,223.72,10.87647521]
[1760011507642,4.6684939,223.79,223.73,31.4]
[1760011510227,4.6684939,223.79,223.74,31.38]
[1760011511430,0.09504413,223.75,223.74,31.38]
[1760011513661,4.56431787,223.75,223.69,16.03675076]
[1760011513951,0.09504413,223.75,223.71,10.87647521]
[1760011514160,0.09504413,223.75,223.72,31.36]
[1760011514340,0.09504413,223.75,223.73,31.36]
[1760011515488,0.09504413,223.75,223.73,241.95536686]
[1760011516672,0.09504413,223.75,223.73,35.82959082]
[1760011517054,0.09504413,223.75,223.73,36.51959082]
[1760011517768,0.09504413,223.75,223.73,32.05]
[1760011518152,0.09504413,223.75,223.74,0.69]
[1760011518895,0.09504413,223.75,223.74,222.16184207]
[1760011520458,0.09504413,223.75,223.74,226.63131556]
[1760011521958,0.09504413,223.75,223.74,258.01131556]
[1760011523982,0.09504413,223.75,223.74,16.0359487]
[1760011524184,0.09504413,223.75,223.74,47.84289604]
[1760011530306,0.09504413,223.75,223.74,49.63136488]
[1760011530984,0.09504413,223.75,223.74,55.42598659]
[1760011531606,0.1788364,223.75,223.74,55.42598659]
[1760011532306,0.1788364,223.75,223.74,267.92598659]
[1760011532507,0.1788364,223.75,223.74,267.47903925]
[1760011532893,0.08379227,223.75,223.74,267.47903925]
[1760011533379,0.08379227,223.75,223.74,54.97903925]
[1760011533578,0.08379227,223.75,223.74,55.42598659]
[1760011534388,0.08379227,223.75,223.74,24.06598659]
[1760011534587,0.08379227,223.75,223.74,55.42598659]
[1760011537395,0.08379227,223.75,223.74,55.40598659]
[1760011537920,0.08379227,223.75,223.74,52.92751775]
[1760011538819,0.08379227,223.75,223.74,53.62751775]
[1760011539033,0.08379227,223.75,223.74,52.92751775]
[1760011539818,0.08379227,223.75,223.74,53.62751775]
[1760011542505,0.08622599,223.76,223.75,10.87647521]
[1760011542689,0.08622599,223.76,223.75,11.57647521]
[1760011543692,0.08622599,223.76,223.75,16.04574895]
[1760011548192,0.08622599,223.76,223.75,17.83437774]
[1760011551543,0.18060788,223.76,223.75,49.13437774]
[1760011552041,0.64060788,223.76,223.75,12.665104]
[1760011552232,0.18060788,223.76,223.75,67.89267632]
[1760011552730,0.09438189,223.76,223.75,67.89267632]
[1760011553724,0.09438189,223.76,223.75,63.42340258]
[1760011555214,0.08677298,223.77,223.76,10.87647521]
[1760011555416,0.08677298,223.77,223.76,17.39109692]
[1760011555719,0.09755124,223.78,223.76,17.39109692]
[1760011555908,0.09755124,223.78,223.77,43.36336263]
[1760011556111,0.28656041,223.79,223.78,10.87647521]
[1760011556333,0.28656041,223.79,223.78,11.59647521]
[1760011557130,0.09406591,223.84,223.8,31.67647521]
[1760011557335,0.09406591,223.84,223.8,42.64330273]
[1760011557536,0.09406591,223.84,223.8,43.36330273]
[1760011557734,0.09406591,223.84,223.8,45.15153171]
[1760011559244,0.09406591,223.84,223.8,49.61980695]
[1760011562019,0.09406591,223.84,223.8,48.89980695]
[1760011562241,0.55406591,223.84,223.8,48.87980695]
[1760011563038,0.09406591,223.84,223.8,48.87980695]
[1760011563343,4.46588067,223.92,223.91,73.90330088]
[1760011563522,16.97828878,223.93,223.91,105.20330088]
[1760011563920,15.63010128,223.93,223.91,105.20330088]
[1760011564115,16.97828878,223.93,223.91,105.20330088]
[1760011564740,16.97828878,223.93,223.91,73.90330088]
[1760011564944,16.97828878,223.93,223.92,31.3]
[1760011565130,16.97828878,223.93,223.91,73.90330088]
[1760011565439,16.97828878,223.93,223.92,31.28]
[1760011566929,15.63010128,223.93,223.92,31.28]
[1760011567129,16.97828878,223.93,223.92,31.28]
[1760011567961,12.51260755,223.93,223.92,31.28]
[1760011569147,16.97828878,223.93,223.92,105.18330088]
[1760011570041,15.63010128,223.93,223.92,105.18330088]
[1760011574160,16.97828878,223.93,223.92,105.18330088]
[1760011574340,15.63010128,223.93,223.92,105.18330088]
[1760011574651,16.97828878,223.93,223.92,105.18330088]
[1760011575241,19.983812,223.93,223.92,105.18330088]
[1760011577156,18.6356245,223.93,223.92,105.18330088]
[1760011577336,19.983812,223.93,223.92,105.18330088]
[1760011578657,18.6356245,223.93,223.92,105.18330088]
[1760011580656,19.983812,223.93,223.92,73.90330088]
[1760011580832,19.983812,223.93,223.92,105.16330088]
[1760011581350,18.6356245,223.93,223.92,105.16330088]
[1760011581537,7.47120445,223.93,223.92,105.88330088]
[1760011581732,4.46568123,223.93,223.92,105.88330088]
[1760011583667,4.46548182,223.94,223.92,105.88330088]
[1760011583837,4.46548182,223.94,223.93,0.72]
[1760011584159,4.46548182,223.94,223.93,73.90330088]
[1760011584742,4.46548182,223.94,223.93,105.16330088]
[1760011584950,4.46548182,223.94,223.93,31.26]
[1760011585868,4.46548182,223.94,223.93,31.95]
[1760011586353,4.46548182,223.94,223.93,31.26]
[1760011586853,4.46528242,223.95,223.91,0.69]
[1760011587052,4.46528242,223.95,223.92,31.95]
[1760011587246,4.46528242,223.95,223.93,31.26]
[1760011587449,4.46528242,223.95,223.94,31.26]
[1760011588039,4.46528242,223.95,223.94,31.95]
[1760011588243,0.2,223.98,223.94,31.95]
[1760011588244,4.46507645,223.97,223.94,31.95]
[1760011588445,3.96507645,223.97,223.94,31.95]
[1760011588761,3.96507645,223.97,223.94,31.26]
[1760011588964,1.3481875,223.96,223.94,31.26]
[1760011589146,15.12728567,223.97,223.94,31.26]
[1760011589347,1.3481875,223.96,223.94,31.26]
[1760011590343,4.46528242,223.95,223.94,31.26]
[1760011590969,15.62848849,223.95,223.94,31.26]
[1760011591260,16.97667599,223.95,223.94,31.26]
[1760011591868,15.62848849,223.95,223.94,31.26]
[1760011592072,16.97667599,223.95,223.94,31.26]
[1760011592847,12.51139357,223.95,223.94,31.26]
[1760011594157,16.97667599,223.95,223.94,31.26]
[1760011595158,19.98006846,223.95,223.94,31.26]
[1760011595464,7.46867489,223.95,223.94,31.26]
[1760011595670,5.81346992,223.95,223.94,31.26]
[1760011596050,8.81686239,223.95,223.94,31.26]
[1760011596249,5.81346992,223.95,223.94,31.26]
[1760011596665,8.81686239,223.95,223.94,31.26]
[1760011596875,5.81346992,223.95,223.94,31.26]
[1760011597255,8.81686239,223.95,223.94,31.26]
[1760011597884,7.46867489,223.95,223.94,31.26]
[1760011598175,8.81686239,223.95,223.94,31.26]
[1760011600875,19.98006846,223.95,223.94,31.26]
[1760011601479,7.46867489,223.95,223.94,31.26]
[1760011601675,8.81686239,223.95,223.94,31.95]
[1760011602364,7.46867489,223.95,223.94,31.95]
[1760011602568,8.81686239,223.95,223.94,31.95]
[1760011603258,7.46867489,223.95,223.94,31.95]
[1760011607458,19.98006846,223.95,223.86,31.67647521]
[1760011607657,16.97667599,223.95,223.88,10.87647521]
[1760011607883,4.35707016,223.94,223.89,0.69]
[1760011608184,3.00906034,223.93,223.89,31.95]
[1760011608388,1.3481875,223.94,223.9,0.69]
[1760011608562,3.00940178,223.93,223.9,0.69]
[1760011608761,15.62848849,223.95,223.9,0.69]
[1760011608762,16.97667599,223.95,223.9,0.69]
[1760011608984,4.35758892,223.94,223.9,0.69]
[1760011609185,3.00940142,223.93,223.89,31.26]
[1760011609359,1.3481875,223.94,223.91,0.69]
[1760011609558,3.00968184,223.93,223.91,0.69]
[1760011609862,3.00968184,223.93,223.87,10.87647521]
[1760011609863,4.46568123,223.93,223.92,31.95]
[1760011610071,7.47536307,223.93,223.92,31.95]
[1760011610460,7.47536307,223.93,223.92,31.26]
[1760011610880,7.47536307,223.93,223.92,0.69]
[1760011611081,7.47536307,223.93,223.92,31.95]
[1760011614503,7.47536307,223.93,223.92,31.26]
[1760011614504,8.82355057,223.93,223.92,31.26]
[1760011616482,7.47536307,223.93,223.92,31.26]
[1760011616689,7.47536307,223.93,223.92,31.97]
[1760011616690,8.82355057,223.93,223.92,31.97]
[1760011616888,8.82355057,223.93,223.92,31.26]
[1760011617090,7.47536307,223.93,223.92,31.97]
[1760011621596,4.46568123,223.93,223.92,31.97]
[1760011622799,7.47616914,223.93,223.92,31.97]
[1760011624003,9.5821987,223.93,223.92,31.26]
[1760011624316,20.74640179,223.93,223.87,31.97]
[1760011624506,2.10602956,223.89,223.88,0.71]
[1760011624687,2.10602956,223.89,223.87,31.26]
[1760011624688,5.11651747,223.89,223.87,31.26]
[1760011625000,7.47716648,223.88,223.87,31.26]
[1760011625301,3.01054938,223.89,223.87,31.97]
[1760011625503,17.73521594,223.94,223.88,0.71]
[1760011625685,3.0104574,223.93,223.88,0.71]
[1760011626006,3.0104574,223.92,223.88,0.71]
[1760011626178,17.73521594,223.94,223.88,0.71]
[1760011626179,3.0104574,223.91,223.88,0.71]
[1760011626379,17.73521594,223.94,223.88,0.71]
[1760011626380,3.0104574,223.9,223.88,0.71]
[1760011626570,17.73591388,223.93,223.88,0.71]
[1760011626776,3.01034895,223.92,223.88,14.12051831]
[1760011626975,3.01034895,223.91,223.89,0.71]
[1760011627175,15.62988432,223.93,223.89,0.71]
[1760011627403,3.01004097,223.92,223.89,0.71]
[1760011627602,15.62988432,223.93,223.89,0.71]
[1760011627781,3.0100295,223.92,223.89,0.71]
[1760011627975,15.62988432,223.93,223.89,0.71]
[1760011628186,3.01004133,223.92,223.9,0.71]
[1760011628390,5.11614613,223.91,223.86,0.71]
[1760011628586,15.62988432,223.93,223.87,31.97]
[1760011628587,5.11614613,223.9,223.87,31.97]
[1760011628808,3.01011657,223.89,223.88,0.71]
[1760011629694,3.01011657,223.89,223.87,31.26]
[1760011629894,2.10602956,223.9,223.87,31.97]
[1760011630110,3.00995056,223.89,223.88,0.71]
[1760011630390,7.47642963,223.89,223.88,0.71]
[1760011631720,7.47642963,223.89,223.87,31.26]
[1760011632024,3.00921729,223.88,223.87,31.26]
[1760011632324,6.57250863,223.89,223.87,31.26]
[1760011633101,6.57250863,223.89,223.87,31.97]
[1760011633302,4.46647907,223.89,223.88,0.71]
[1760011633502,7.47505795,223.89,223.88,0.71]
[1760011634619,7.47505795,223.89,223.87,31.26]
[1760011634824,4.46647907,223.89,223.87,31.26]
[1760011635202,4.46647907,223.89,223.87,31.97]
[1760011635930,15.63146183,223.91,223.87,31.97]
[1760011636132,3.00820494,223.9,223.88,0.71]
[1760011636318,25.26569862,223.93,223.88,0.71]
[1760011636507,3.00794353,223.92,223.88,0.71]
[1760011636827,3.00794353,223.91,223.88,0.71]
[1760011637007,20.8,223.93,223.88,0.71]
[1760011637320,2.10602956,223.97,223.89,10.87647521]
[1760011637531,23.10602956,223.98,223.9,0.71]
[1760011637725,20.8,223.96,223.9,0.71]
[1760011638828,4.46528242,223.95,223.9,0.71]
[1760011639532,15.62848849,223.95,223.9,0.71]
[1760011641426,4.46528242,223.95,223.9,0.71]
[1760011643228,15.62848849,223.95,223.9,0.71]
[1760011644527,15.62848849,223.95,223.91,0.71]
[1760011644732,15.62848849,223.95,223.92,31.24]
[1760011644926,15.62848849,223.95,223.92,31.95]
[1760011647326,15.62848849,223.95,223.89,24.28699352]
[1760011647327,2.10602956,223.93,223.86,0.72]
[1760011647529,2.10602956,223.91,223.87,31.24]
[1760011647743,2.10602956,223.9,223.87,31.24]
[1760011648037,20.8,223.92,223.87,31.24]
[1760011648216,2.10602956,223.88,223.87,31.24]
[1760011648536,13.41411612,223.9,223.87,31.96]
[1760011648735,20.8,223.92,223.87,31.96]
[1760011648938,2.10602956,223.9,223.87,31.24]
[1760011649142,2.10602956,223.89,223.87,31.24]
[1760011649443,4.46667857,223.88,223.87,31.24]
[1760011649622,17.73940457,223.88,223.87,31.24]
[1760011649823,17.73940457,223.88,223.87,31.96]
[1760011650221,17.73940457,223.88,223.78,20.8]
[1760011650222,38.53940457,223.88,223.78,0.72]
[1760011650543,2.10602956,223.83,223.79,31.24]
[1760011650846,2.10602956,223.83,223.8,0.72]
[1760011651149,36.43337501,223.88,223.81,0.72]
[1760011651323,15.63616868,223.84,223.81,0.72]
[1760011651723,15.63616868,223.84,223.82,0.72]
[1760011652642,3.00924727,223.83,223.82,0.72]
[1760011652851,7.47692363,223.83,223.82,0.72]
[1760011653348,18.64611453,223.83,223.8,0.72]
[1760011653542,3.00924727,223.82,223.81,0.72]
[1760011653744,3.00924727,223.82,223.79,31.24]
[1760011654047,3.00924727,223.81,223.79,31.24]
[1760011654232,3.00924727,223.82,223.79,31.96]
[1760011654437,3.00924727,223.81,223.79,31.96]
[1760011654636,3.00924727,223.82,223.79,31.24]
[1760011654838,7.47732286,223.81,223.8,0.72]
[1760011655048,4.46807559,223.81,223.8,0.72]
[1760011656639,3.0031247,223.82,223.8,0.72]
[1760011656837,14.1723156,223.83,223.8,0.72]
[1760011657658,2.10602956,223.82,223.78,0.72]
[1760011657953,3.0031247,223.82,223.79,31.98]
[1760011658453,3.0031247,223.82,223.8,0.72]
[1760011658932,4.46807559,223.81,223.79,31.26]
[1760011661352,4.46807559,223.81,223.79,31.98]
[1760011661647,15.63756589,223.82,223.79,31.98]
[1760011662752,15.63756589,223.82,223.8,0.72]
[1760011664054,15.63756589,223.82,223.8,79.52]
[1760011664948,15.63756589,223.82,223.8,79.46]
[1760011666570,11.16968992,223.82,223.8,79.46]
[1760011667272,11.16968992,223.82,223.8,78.8]
[1760011667442,11.16968992,223.82,223.81,0.66]
[1760011670159,11.16968992,223.82,223.81,79.46]
[1760011670357,4.46767636,223.83,223.81,79.46]
[1760011670566,4.46767636,223.83,223.82,31.92]
[1760011671167,4.46767636,223.83,223.82,31.26]
[1760011672681,4.46767636,223.83,223.82,31.92]
[1760011673778,4.46687809,223.87,223.82,31.92]
[1760011673995,4.46687809,223.87,223.83,0.66]
[1760011674783,7.46177851,223.9,223.83,0.66]
[1760011675589,4.46627958,223.9,223.85,0.5]
[1760011675878,2.10602956,223.88,223.86,31.26]
[1760011676288,5.10152849,223.89,223.86,31.26]
[1760011676487,2.99549893,223.89,223.86,31.98]
[1760011676792,2.10602956,223.89,223.86,31.98]
[1760011677391,13.27172853,223.9,223.86,31.98]
[1760011678570,2.10602956,223.89,223.86,31.26]
[1760011678769,11.16569897,223.9,223.86,31.98]
[1760011678979,2.10602956,223.89,223.86,31.98]
[1760011679484,15.63197855,223.9,223.86,31.26]
[1760011679687,5.10161586,223.89,223.87,0.72]
[1760011679983,5.10161586,223.89,223.87,79.52]
[1760011679984,2.10602956,223.89,223.87,79.52]
[1760011680353,5.10165164,223.89,223.87,79.52]
[1760011680557,17.73800811,223.9,223.87,78.8]
[1760011680784,17.73800811,223.9,223.88,0.72]
[1760011681083,17.73800811,223.9,223.87,78.8]
[1760011681280,2.99573872,223.89,223.87,79.52]
[1760011681463,4.46667857,223.88,223.87,79.52]
[1760011683481,12.5144301,223.9,223.87,79.52]
[1760011683791,11.16569897,223.9,223.87,78.8]
[1760011684087,1.34873113,223.88,223.87,78.8]
[1760011685897,5.8154097,223.88,223.87,79.52]
[1760011686204,4.46667857,223.88,223.87,79.52]
[1760011686393,5.8154097,223.88,223.87,79.52]
[1760011687468,4.46667857,223.88,223.87,79.52]
[1760011688189,1.34873113,223.94,223.87,75.05332143]
[1760011688366,2.99800284,223.93,223.88,31.96]
[1760011688562,1.34873113,223.95,223.88,31.96]
[1760011688563,2.99800284,223.94,223.89,0.72]
[1760011688780,2.99800284,223.93,223.9,31.24]
[1760011688993,1.34873113,223.95,223.9,31.24]
[1760011689171,2.99800284,223.94,223.91,0.72]
[1760011689371,7.46368407,223.93,223.92,31.96]
[1760011689572,4.46568123,223.93,223.92,31.96]
[1760011689768,7.46368407,223.93,223.92,31.96]
[1760011689974,4.46568123,223.93,223.92,31.96]
[1760011691475,4.46568123,223.93,223.87,74.33332143]
[1760011691476,16.97861545,223.93,223.87,74.33332143]
[1760011691790,1.34873113,223.91,223.88,31.96]
[1760011691983,1.34873113,223.91,223.89,0.72]
[1760011692187,2.99800284,223.92,223.9,0.72]
[1760011692486,2.99800284,223.92,223.91,31.96]
[1760011692678,16.97861545,223.93,223.91,31.96]
[1760011692993,16.97861545,223.93,223.92,0.72]
[1760011693297,18.62981216,223.93,223.92,0.72]
[1760011695476,4.66471454,223.98,223.92,145.29647521]
[1760011695684,4.66471454,223.98,223.92,218.90979664]
[1760011696088,4.66471454,223.98,223.95,10.87647521]
[1760011696285,4.66471454,223.98,223.96,31.3]
[1760011697092,4.66471454,223.98,223.94,0.5]
[1760011697093,4.66471454,223.98,223.97,31.3]
[1760011697663,5.37471454,223.98,223.97,31.3]
[1760011698070,4.66471454,223.98,223.97,31.3]
[1760011702715,4.66471454,223.98,223.97,31.28]
[1760011702999,16.5364254,223.98,223.97,31.28]
[1760011703175,17.88515653,223.98,223.82,168.54]
[1760011703377,1.34873113,223.95,223.83,42.17647521]
[1760011703577,4.66471454,223.98,223.89,10.87647521]
[1760011703887,4.66471454,223.98,223.91,10.87647521]
[1760011705688,4.66471454,223.98,223.91,15.78909526]
[1760011706092,4.66471454,223.98,223.93,0.5]
[1760011706302,4.66471454,223.98,223.95,10.87647521]
[1760011706502,0.2,223.98,223.95,10.87647521]
[1760011708314,0.2,223.98,223.96,0.4465083]
[1760011708603,0.2,223.98,223.97,31.32]
[1760011709900,0.2,223.98,223.97,42.19647521]
[1760011710079,0.2,223.98,223.97,46.66135889]
[1760011710791,0.2,223.98,223.97,67.46135889]
[1760011711408,0.2,223.98,223.97,71.92456936]
[1760011711800,0.2,223.98,223.97,51.12456936]
[1760011723237,0.2,224.02,224.01,31.67647521]
[1760011723398,0.2,224.02,224.01,63.38288385]
[1760011723716,0.66,224.11,224.01,63.38288385]
[1760011723900,0.66,224.11,224.01,65.16919623]
[1760011724105,0.66,224.11,224.06,31.67647521]
[1760011724439,0.66,224.11,224.08,10.87647521]
[1760011724647,0.66,224.11,224.1,10.87647521]
[1760011724848,0.2,224.16,224.1,31.67647521]
[1760011725019,0.2,224.16,224.14,10.87647521]
[1760011725344,0.2,224.16,224.15,42.78260503]
[1760011725519,0.2,224.16,224.15,10.87647521]
[1760011725740,0.9,224.16,224.15,42.33647521]
[1760011725939,0.2,224.16,224.15,44.12191052]
[1760011726251,0.9,224.16,224.15,31.46]
[1760011726458,5.36109921,224.16,224.15,31.46]
[1760011726622,5.36109921,224.16,224.1,10.87647521]
[1760011726822,0.61,224.15,224.11,31.5]
[1760011727040,0.61,224.14,224.07,10.87647521]
[1760011727238,1.34873113,224.15,224.08,31.5]
[1760011727239,1.34873113,224.11,224.08,31.5]
[1760011727445,21.41,224.13,224.03,34.82]
[1760011727446,0.61,224.1,224.09,31.52]
[1760011727757,1.95873113,224.1,224.03,34.82]
[1760011727959,1.95873113,224.09,224.04,31.52]
[1760011728125,16.22942162,224.08,224.04,31.52]
[1760011728328,0.61,224.07,224.04,31.52]
[1760011728657,15.61942162,224.08,224.04,31.52]
[1760011728658,0.61,224.06,224.04,31.52]
[1760011728853,0.61,224.05,224.04,31.52]
[1760011729159,15.61942162,224.08,224.04,31.52]
[1760011729160,4.46269189,224.08,224.05,10.87647521]
[1760011729527,5.07269189,224.08,224.05,10.87647521]
[1760011729857,0.61,224.07,224.06,31.52]
[1760011732229,4.57289106,224.07,224.06,31.52]
[1760011732666,4.46289106,224.07,224.06,31.52]
[1760011733368,4.46229361,224.1,224.07,10.87647521]
[1760011734671,15.61703467,224.12,224.07,10.87647521]
[1760011735667,11.15513926,224.12,224.07,10.87647521]
[1760011736979,14.13678841,224.12,224.07,10.87647521]
[1760011737851,18.59868382,224.12,224.07,10.87647521]
[1760011738049,2.98164915,224.11,224.07,10.87647521]
[1760011738465,2.98164915,224.11,224.06,31.52]
[1760011738466,4.33038028,224.11,224.06,31.52]
[1760011738764,1.34873113,224.09,224.06,31.52]
[1760011738966,2.98164915,224.11,224.07,10.87647521]
[1760011739346,2.98164915,224.1,224.06,31.52]
[1760011739660,1.34873113,224.09,224.06,31.52]
[1760011739965,4.46269189,224.08,224.06,31.52]
[1760011741169,5.81142302,224.08,224.06,31.52]
[1760011741369,5.81142302,224.08,224.0,10.87647521]
[1760011741370,1.34873113,224.07,224.0,10.87647521]
[1760011741545,1.34873113,224.01,223.94,0.66]
[1760011741745,15.62499999,224.0,223.97,10.87647521]
[1760011741963,16.97373112,224.0,223.96,31.54]
[1760011742271,15.62499999,224.0,223.96,31.54]
[1760011742667,15.62499999,224.0,223.96,32.2]
[1760011742968,15.62499999,224.0,223.96,31.54]
[1760011743347,15.62499999,224.0,223.97,10.87647521]
[1760011743743,11.16071428,224.0,223.97,10.87647521]
[1760011743949,4.46388715,224.02,223.97,10.87647521]
[1760011744257,17.72845316,224.02,223.97,10.87647521]
[1760011744464,17.72845316,224.02,223.96,31.54]
[1760011744664,17.72845316,224.02,223.97,10.87647521]
[1760011745173,2.10484813,224.01,223.96,31.54]
[1760011745972,15.62499999,224.0,223.96,31.54]
[1760011746367,2.10484813,223.99,223.96,31.54]
[1760011746976,15.62499999,224.0,223.96,31.54]
[1760011747166,15.62499999,224.0,223.97,11.53647521]
[1760011747363,15.62499999,224.0,223.96,31.54]
[1760011747364,15.62499999,224.0,223.98,31.54]
[1760011747564,17.72984812,224.0,223.98,31.54]
[1760011748566,2.10484813,223.99,223.98,31.54]
[1760011749673,4.46448502,223.99,223.98,31.54]
[1760011750449,4.46448502,223.99,223.98,78.8]
[1760011750654,4.46448502,223.99,223.98,55.95346947]
[1760011751456,4.46448502,223.99,223.98,29.12412672]
[1760011751675,4.46448502,223.99,223.98,2.41525243]
[1760011751879,4.46448502,223.99,223.91,10.87647521]
[1760011751880,15.62569757,223.99,223.91,10.87647521]
[1760011752183,2.10484813,223.94,223.92,31.52]
[1760011752361,2.10484813,223.94,223.91,31.54]
[1760011752685,2.10484813,223.94,223.92,0.66]
[1760011752980,20.8,223.96,223.91,31.54]
[1760011753187,2.10484813,223.95,223.92,0.66]
[1760011753782,22.90484813,223.96,223.93,0.66]
[1760011754153,4.46528242,223.95,223.93,0.66]
[1760011754353,15.62848849,223.95,223.91,31.54]
[1760011754686,15.62848849,223.95,223.92,0.66]
[1760011755164,17.73333662,223.95,223.93,0.66]
[1760011755560,17.73333662,223.95,223.91,31.54]
[1760011755756,2.10484813,223.94,223.9,31.52]
[1760011755956,2.10484813,223.94,223.91,0.66]
[1760011756281,4.46568123,223.93,223.91,0.66]
[1760011756574,15.62988432,223.93,223.92,0.66]
[1760011757170,15.62988432,223.93,203.1,47.50482094]
[1760011757171,20.8,223.9,223.81,0.66]
[1760011757359,2.10484813,223.85,223.82,0.66]
[1760011757559,2.10484813,223.86,223.83,0.66]
[1760011757886,2.10484813,223.87,223.84,0.66]
[1760011758076,2.10484813,223.86,223.82,10.87647521]
[1760011758281,4.46727719,223.85,223.84,0.66]
[1760011758580,4.46727719,223.85,223.84,43.07647521]
[1760011760181,22.32840619,223.93,223.85,10.87647521]
[1760011760182,2.10484813,223.93,223.85,10.87647521]
[1760011760367,20.8,223.95,223.87,10.87647521]
[1760011760696,20.8,223.95,223.85,10.87647521]
[1760011760697,4.46488368,223.97,223.88,32.2]
[1760011760890,11.15956977,224.03,223.93,10.87647521]
[1760011761184,11.15956977,224.03,223.92,20.8]
[1760011761185,11.15971788,224.02,223.95,10.87647521]
[1760011761358,4.46368789,224.03,223.97,10.87647521]
[1760011761554,4.46368789,224.03,223.98,32.32]
[1760011761775,2.33062626,224.13,223.99,11.53647521]
[1760011761776,4.46309024,224.06,223.99,11.53647521]
[1760011761957,4.46309024,224.06,224.01,10.87647521]
[1760011762154,4.46309024,224.06,223.93,0.44656812]
[1760011762155,6.56853602,224.03,224.02,31.68]
[1760011762672,4.46368789,224.03,224.02,31.68]
[1760011763167,4.46368789,224.03,224.02,32.34]
[1760011764187,17.72705844,224.04,223.98,0.66]
[1760011764362,2.10484813,224.02,223.99,31.66]
[1760011764565,15.62221031,224.04,224.0,31.68]
[1760011764760,2.10484813,224.03,224.0,31.68]
[1760011764980,2.10484813,224.02,224.0,31.68]
[1760011765281,15.62221031,224.04,223.87,15.63407333]
[1760011765282,2.10484813,224.01,223.97,31.68]
[1760011765582,2.10484813,223.98,223.95,31.68]
[1760011765767,2.10484813,223.97,223.95,31.68]
[1760011766170,20.8,224.01,223.95,31.68]
[1760011766171,6.56993118,223.96,223.95,31.68]
[1760011766360,6.56993118,223.96,223.91,0.72]
[1760011766575,2.10484813,223.94,223.92,31.68]
[1760011767262,2.10484813,223.94,223.91,31.68]
[1760011767778,4.46568123,223.93,223.91,31.68]
[1760011767976,4.46568123,223.93,223.91,32.4]
[1760011768382,4.46568123,223.93,223.91,31.68]
[1760011768578,4.46568123,223.93,223.91,32.4]
[1760011768780,4.46568123,223.93,223.91,31.68]
[1760011769163,4.46568123,223.93,223.91,32.4]
[1760011770287,15.62953066,223.94,223.91,32.4]
[1760011770585,20.84599945,223.94,223.91,32.4]
[1760011770886,15.62953066,223.94,223.92,0.72]
[1760011771183,15.62953066,223.94,223.74,13.58222335]
[1760011771184,20.8,223.9,223.74,13.58222335]
[1760011771388,20.8,223.9,223.8,0.72]
[1760011771580,37.95693978,223.94,223.8,0.72]
[1760011771581,20.8,223.88,223.8,32.42]
[1760011771776,5.21646879,223.85,223.8,32.42]
[1760011771979,5.21646879,223.85,223.81,0.72]
[1760011772174,20.8,223.88,223.81,0.72]
[1760011772175,20.85263747,223.84,223.81,0.72]
[1760011772494,20.85263747,223.84,223.8,31.7]
[1760011772682,20.8,223.9,223.81,0.72]
[1760011772880,20.8,223.91,223.82,10.87647521]
[1760011773093,4.46588067,223.92,223.84,10.87647521]
[1760011773269,4.46588067,223.92,223.86,10.87647521]
[1760011773470,15.63083751,223.92,223.87,0.72]
[1760011773895,20.8473063,223.92,223.85,31.74]
[1760011774078,20.8473063,223.92,223.85,32.46]
[1760011774278,20.8,223.93,223.85,32.46]
[1760011774497,5.21646879,223.92,223.85,32.46]
[1760011774693,20.8,223.93,223.85,32.46]
[1760011774896,5.21646879,223.92,223.85,32.46]
[1760011775577,15.63128042,223.91,223.85,32.46]
[1760011776071,20.84774921,223.91,223.85,32.46]
[1760011776492,5.01907093,223.87,223.85,32.46]
[1760011777073,4.46707763,223.86,223.85,31.74]